[Event "80th GEO-ch 2021"]
[Site "Tbilisi"]
[Date "2021.04.21"]
[Round "2.5"]
[White "Pantsulaia, Levan"]
[Black "Lortkipanidze, Nodar"]
[Result "1-0"]
[ECO "E62"]
[WhiteElo "2553"]
[BlackElo "2416"]
[Annotator "RC"]
[PlyCount "55"]
[EventDate "2021.04.20"]
[EventType "tourn"]
[EventCountry "GEO"]
[SourceTitle "playchess.com"]
[Source "ChessBase"]
[SourceQuality "1"]
[TimeControl "5400+30"]

1. g3 {[%emt 0:00:13]} g6 {[%emt 0:00:02]} 2. Bg2 {[%emt 0:00:35]} Bg7 {[%emt 0:00:09]} 3. c4 {[%emt 0:00:15]} d6 {[%emt 0:00:24]} 4. Nc3 {[%emt 0:01:19]} Nc6 {[%emt 0:00:21]} 5. Nf3 {[%emt 0:00:27]} Nf6 {[%emt 0:00:28]} 6. d4 {[%emt 0:00:36]} O-O {[%emt 0:00:11]} 7. O-O {[%emt 0:00:07]} e5 {[%emt 0:00:24]} 8. dxe5 {[%emt 0:00:17]} Nxe5 {[%emt 0:00:08]} 9. Nxe5 {[%emt 0:02:06]} dxe5 {[%emt 0:00:07]} 10. Qa4 {[%emt 0:00:18]} c6 {[%emt 0:00:26]} 11. Be3 {[%emt 0:00:30]} Qc7 {[%emt 0:03:00]} 12. Rfd1 {[%emt 0:09:48]} Be6 {[%emt 0:02:52]} 13. h3 {[%emt 1:19:59]} Nd7 {[%emt 0:02:41]} 14. b3 {[%emt 0:00:00]} f5 {[%emt 0:00:48]} 15. Rac1 {[%emt 0:00:00]} f4 {[%emt 0:06:54]} 16. Bd2 {[%emt 0:00:00]} Qb6 {[%emt 0:03:56]} 17. gxf4 {[%emt 0:00:00]} exf4 {[%emt 0:00:21]} 18. Qa3 {[%emt 0:00:00]} f3 {[%emt 0:08:28]} 19. exf3 {[%emt 0:00:00]} Rae8 {[%emt 0:07:08]} 20. Ne4 {[%emt 0:00:00]} Qc7 {[%emt 0:09:15]} 21. Qd6 {[%emt 0:00:00]} Qc8 {[%emt 0:05:33]} 22. Qg3 {[%emt 0:00:00]} Be5 {[%emt 0:01:07]} 23. Qh4 {[%emt 0:00:00]} Rf5 {[%emt 0:05:45]} 24. f4 {[%emt 0:00:00]} Rh5 {[%emt 0:09:31]} 25. Qg3 {[%emt 0:00:00]} Bc7 {[%emt 0:00:31]} 26. Bc3 {[%emt 0:00:00]} Rf8 {[%emt 0:03:28]} 27. Nd6 {[%emt 0:00:00]} Qb8 {[%emt 0:00:52]} 28. Qe3 {[%emt 0:00:00]} 1-0

[Event "80th GEO-ch 2021"]
[Site "Tbilisi"]
[Date "2021.04.22"]
[Round "3.1"]
[White "Lortkipanidze, Nodar"]
[Black "Azaladze, Shota"]
[Result "1-0"]
[ECO "B10"]
[WhiteElo "2416"]
[BlackElo "2439"]
[Annotator "RC"]
[PlyCount "83"]
[EventDate "2021.04.20"]
[EventType "tourn"]
[EventCountry "GEO"]
[SourceTitle "playchess.com"]
[Source "ChessBase"]
[SourceQuality "1"]
[TimeControl "5400+30"]

1. e4 {[%emt 0:00:00]} c6 {[%emt 0:00:00]} 2. c4 {[%emt 0:00:19]} d5 {[%emt 0:02:33]} 3. exd5 {[%emt 0:00:16]} cxd5 {[%emt 0:00:01]} 4. cxd5 {[%emt 0:00:07]} Nf6 {[%emt 0:00:23]} 5. Nc3 {[%emt 0:00:05]} g6 {[%emt 0:00:06]} 6. Qb3 {[%emt 0:00:25]} Bg7 {[%emt 0:00:20]} 7. g3 {[%emt 0:00:04]} O-O {[%emt 0:03:21]} 8. Bg2 {[%emt 0:03:42]} Na6 {[%emt 0:03:56]} 9. d4 {[%emt 0:00:24]} Qa5 {[%emt 0:03:09]} 10. Nge2 {[%emt 0:04:25]} Rd8 {[%emt 0:00:30]} 11. O-O {[%emt 0:03:35]} Qb4 {[%emt 0:01:58]} 12. Bf4 {[%emt 0:01:18]} Ne8 {[%emt 0:07:33]} 13. Be5 {[%emt 0:03:04]} Nd6 {[%emt 0:02:53]} 14. Nf4 {[%emt 0:01:04]} Qxb3 {[%emt 0:00:29]} 15. axb3 {[%emt 0:00:05]} Nc7 {[%emt 0:00:56]} 16. Rfe1 {[%emt 0:00:39]} Bh6 {[%emt 0:01:27]} 17. Nd3 {[%emt 0:01:19]} a6 {[%emt 0:11:06]} 18. Nc5 {[%emt 0:05:38]} Kf8 {[%emt 0:03:41]} 19. N3a4 {[%emt 0:01:38]} Rb8 {[%emt 0:01:40]} 20. Nb6 {[%emt 0:00:33]} Bf5 {[%emt 0:02:55]} 21. h3 {[%emt 0:05:56]} f6 {[%emt 0:00:27]} 22. g4 {[%emt 0:01:08]} fxe5 23. gxf5 {[%emt 0:00:30]} exd4 {[%emt 0:01:56]} 24. Nbd7+ {[%emt 0:00:30]} Kf7 {[%emt 0:00:30]} 25. Nxb8 {[%emt 0:00:30]} Rxb8 {[%emt 0:00:30]} 26. Nd7 {[%emt 0:00:30]} Rg8 {[%emt 0:00:30]} 27. fxg6+ {[%emt 0:00:30]} hxg6 {[%emt 0:00:30]} 28. Ne5+ {[%emt 0:00:30]} Kf8 {[%emt 0:00:30]} 29. Rad1 {[%emt 0:00:30]} Ncb5 {[%emt 0:00:30]} 30. Nd7+ {[%emt 0:00:30]} Kf7 {[%emt 0:00:30]} 31. Re6 {[%emt 0:00:30]} Bf4 {[%emt 0:00:30]} 32. Rde1 {[%emt 0:00:30]} Re8 {[%emt 0:00:30]} 33. Be4 {[%emt 0:00:30]} Nxe4 {[%emt 0:00:30]} 34. R1xe4 {[%emt 0:00:30]} g5 {[%emt 0:00:30]} 35. Ne5+ {[%emt 0:00:30]} Bxe5 {[%emt 0:00:30]} 36. R4xe5 {[%emt 0:00:30]} d3 {[%emt 0:00:30]} 37. Rf5+ {[%emt 0:00:30]} Kg7 {[%emt 0:00:30]} 38. Rxg5+ {[%emt 0:00:30]} Kf7 {[%emt 0:00:30]} 39. Rf5+ {[%emt 0:00:30]} Kg7 {[%emt 0:00:30]} 40. Rg5+ {[%emt 0:00:30]} Kf7 {[%emt 0:00:30]} 41. Re3 {[%emt 0:00:30]} Kf6 {[%emt 0:00:30]} 42. h4 {[%emt 0:00:30]} 1-0

[Event "80th GEO-ch 2021"]
[Site "Tbilisi"]
[Date "2021.04.23"]
[Round "4.2"]
[White "Gagunashvili, Merab"]
[Black "Arabidze, Meri"]
[Result "1/2-1/2"]
[ECO "C54"]
[WhiteElo "2584"]
[BlackElo "2437"]
[Annotator "ChessBase"]
[PlyCount "243"]
[EventDate "2021.04.20"]
[EventType "tourn"]
[EventCountry "GEO"]
[SourceTitle "playchess.com"]
[Source "ChessBase"]
[SourceQuality "1"]
[TimeControl "5400+30"]

1. e4 {[%emt 0:00:00]} e5 {[%emt 0:00:00]} 2. Nf3 {[%emt 0:00:00]} Nc6 {[%emt 0:00:00]} 3. Bc4 {[%emt 0:00:02]} Bc5 {[%emt 0:00:04]} 4. O-O {[%emt 0:00:31]} Nf6 {[%emt 0:00:18]} 5. d3 {[%emt 0:00:14]} d6 {[%emt 0:00:31]} 6. c3 {[%emt 0:00:32]} h6 {[%emt 0:01:16]} 7. b4 {[%emt 0:02:11]} Bb6 {[%emt 0:00:17]} 8. a4 {[%emt 0:00:08]} a6 {[%emt 0:00:29]} 9. Nbd2 {[%emt 0:01:49]} O-O {[%emt 0:00:40]} 10. Bb3 {[%emt 0:03:44]} Be6 {[%emt 0:06:19]} 11. a5 {[%emt 0:11:49]} Ba7 {[%emt 0:02:21]} 12. Nc4 {[%emt 0:00:46]} Ne7 {[%emt 0:02:42]} 13. Re1 {[%emt 0:01:03]} Ng6 {[%emt 0:02:05]} 14. Be3 {[%emt 0:04:33]} Bxe3 {[%emt 0:09:40]} 15. Nxe3 {[%emt 0:00:19]} Qd7 {[%emt 0:03:29]} 16. Ba4 {[%emt 0:01:40]} Qc8 {[%emt 0:02:41]} 17. Qc2 {[%emt 0:02:11]} Ng4 {[%emt 0:07:21]} 18. d4 {[%emt 0:02:52]} Nxe3 {[%emt 0:07:16]} 19. Rxe3 {[%emt 0:00:32]} Bg4 {[%emt 0:01:53]} 20. Nd2 {[%emt 0:11:05]} Nf4 {[%emt 0:02:12]} 21. f3 {[%emt 0:07:28]} Be6 {[%emt 0:06:13]} 22. Nf1 {[%emt 0:09:35]} Qd8 {[%emt 0:06:11]} 23. Ree1 {[%emt 0:00:55]} h5 {[%emt 0:08:13]} 24. Rad1 {[%emt 0:01:09]} Qg5 {[%emt 0:00:50]} 25. Ne3 {[%emt 0:03:52]} Rad8 {[%emt 0:02:29]} 26. Bb3 {[%emt 0:09:13]} Bxb3 {[%emt 0:03:58]} 27. Qxb3 {[%emt 0:00:03]} d5 {[%emt 0:05:19]} 28. Qc2 {[%emt 0:04:25]} dxe4 {[%emt 0:02:42]} 29. fxe4 {[%emt 0:00:34]} h4 {[%emt 0:02:05]} 30. Kh1 {[%emt 0:01:02]} exd4 {[%emt 0:08:02]} 31. cxd4 {[%emt 0:00:19]} c6 {[%emt 0:01:39]} 32. Qc5 {[%emt 0:01:34]} f5 {[%emt 0:02:53]} 33. Qc4+ {[%emt 0:11:36]} Kh8 {[%emt 0:00:17]} 34. e5 {[%emt 0:01:41]} Rde8 {[%emt 0:02:25]} 35. Qf1 {[%emt 0:00:22]} Ne6 {[%emt 0:01:08]} 36. Nc4 {[%emt 0:00:21]} h3 {[%emt 0:00:55]} 37. gxh3 {[%emt 0:01:30]} Qh5 {[%emt 0:00:27]} 38. Nd6 {[%emt 0:00:51]} Re7 {[%emt 0:00:01]} 39. Qe2 {[%emt 0:02:53]} Qxh3 {[%emt 0:01:03]} 40. Rf1 {[%emt 0:01:19]} g6 {[%emt 0:00:59]} 41. Qg2 {[%emt 0:01:14]} Qxg2+ {[%emt 0:00:22]} 42. Kxg2 {[%emt 0:00:02]} Kg7 {[%emt 0:00:10]} 43. Kg3 {[%emt 0:01:08]} Rh8 {[%emt 0:00:36]} 44. h4 {[%emt 0:00:34]} Nd8 {[%emt 0:00:49]} 45. Nc4 {[%emt 0:00:51]} Ne6 {[%emt 0:00:14]} 46. Nb6 {[%emt 0:00:44]} Rd8 {[%emt 0:00:41]} 47. d5 {[%emt 0:00:48]} cxd5 {[%emt 0:00:05]} 48. Rxd5 {[%emt 0:00:20]} Rxd5 {[%emt 0:00:07]} 49. Nxd5 {[%emt 0:00:01]} Rd7 {[%emt 0:00:07]} 50. Nf6 {[%emt 0:00:50]} Rd4 {[%emt 0:01:02]} 51. Rb1 {[%emt 0:00:46]} Rd3+ {[%emt 0:00:49]} 52. Kf2 {[%emt 0:00:10]} Kf7 {[%emt 0:01:01]} 53. b5 {[%emt 0:00:10]} Nc5 {[%emt 0:00:15]} 54. Rc1 {[%emt 0:01:16]} Ne6 {[%emt 0:00:44]} 55. bxa6 {[%emt 0:00:22]} bxa6 {[%emt 0:00:01]} 56. Rc6 {[%emt 0:00:05]} Rf3+ {[%emt 0:00:40]} 57. Kg2 {[%emt 0:00:40]} Re3 {[%emt 0:00:10]} 58. Rxa6 {[%emt 0:00:42]} Rxe5 {[%emt 0:00:02]} 59. Nd7 {[%emt 0:00:14]} Rd5 {[%emt 0:00:20]} 60. Ra7 {[%emt 0:00:04]} Rd2+ {[%emt 0:00:41]} 61. Kf3 {[%emt 0:00:12]} Rc2 {[%emt 0:01:21]} 62. a6 {[%emt 0:00:37]} Rc3+ {[%emt 0:00:32]} 63. Kf2 {[%emt 0:00:10]} Nc7 {[%emt 0:00:44]} 64. Rb7 {[%emt 0:01:47]} Nxa6 {[%emt 0:00:23]} 65. Nc5+ {[%emt 0:00:04]} Kf6 {[%emt 0:00:20]} 66. Rb6+ {[%emt 0:00:42]} Kf7 {[%emt 0:00:46]} 67. Nxa6 {[%emt 0:00:05]} Rc2+ {[%emt 0:00:23]} 68. Ke3 {[%emt 0:00:31]} Rc3+ {[%emt 0:00:08]} 69. Kd4 {[%emt 0:00:36]} Rh3 {[%emt 0:00:06]} 70. Nc5 {[%emt 0:00:55]} Rxh4+ {[%emt 0:00:47]} 71. Ke5 {[%emt 0:00:01]} Ke7 {[%emt 0:01:03]} 72. Rb7+ {[%emt 0:00:50]} Kd8 {[%emt 0:00:01]} 73. Ne6+ {[%emt 0:00:12]} Kc8 {[%emt 0:00:01]} 74. Rg7 {[%emt 0:00:16]} Rh1 {[%emt 0:00:17]} 75. Kd6 {[%emt 0:00:36]} Rd1+ {[%emt 0:00:24]} 76. Kc6 {[%emt 0:00:04]} Rc1+ {[%emt 0:00:07]} 77. Nc5 {[%emt 0:00:07]} Kd8 {[%emt 0:00:06]} 78. Kd6 {[%emt 0:00:17]} Rd1+ {[%emt 0:00:11]} 79. Ke6 {[%emt 0:00:05]} Re1+ {[%emt 0:00:15]} 80. Kf6 {[%emt 0:00:05]} f4 {[%emt 0:00:27]} 81. Ne6+ {[%emt 0:00:18]} Kc8 {[%emt 0:00:03]} 82. Nxf4 {[%emt 0:00:22]} g5 {[%emt 0:00:17]} 83. Rxg5 {[%emt 0:00:15]} Kd7 {[%emt 0:00:26]} 84. Rd5+ {[%emt 0:00:07]} Kc6 {[%emt 0:00:06]} 85. Rd2 {[%emt 0:00:06]} Rf1 {[%emt 0:00:46]} 86. Ke5 {[%emt 0:00:06]} Re1+ {[%emt 0:00:12]} 87. Ne2 {[%emt 0:00:03]} Rh1 {[%emt 0:00:16]} 88. Nd4+ {[%emt 0:00:07]} Kc5 {[%emt 0:01:11]} 89. Rc2+ {[%emt 0:00:02]} Kb4 {[%emt 0:00:08]} 90. Nf3 {[%emt 0:00:05]} Kb5 {[%emt 0:00:35]} 91. Kd5 {[%emt 0:00:09]} Rd1+ {[%emt 0:01:25]} 92. Nd4+ {[%emt 0:00:03]} Kb6 {[%emt 0:00:03]} 93. Rc4 {[%emt 0:00:06]} Kb7 {[%emt 0:00:56]} 94. Kd6 {[%emt 0:00:14]} Rb1 {[%emt 0:01:07]} 95. Rc3 {[%emt 0:00:20]} Kb6 {[%emt 0:00:44]} 96. Rd3 {[%emt 0:00:22]} Kb7 {[%emt 0:00:50]} 97. Nc6 {[%emt 0:00:15]} Kb6 {[%emt 0:00:38]} 98. Ne5 {[%emt 0:00:09]} Kb7 {[%emt 0:00:50]} 99. Nd7 {[%emt 0:00:08]} Rh1 {[%emt 0:01:11]} 100. Rb3+ {[%emt 0:00:06]} Ka7 {[%emt 0:00:34]} 101. Ne5 {[%emt 0:00:21]} Rh6+ {[%emt 0:00:37]} 102. Kc5 {[%emt 0:00:07]} Rh5 {[%emt 0:00:10]} 103. Kd5 {[%emt 0:00:05]} Ka6 {[%emt 0:00:38]} 104. Kd6 {[%emt 0:00:11]} Rh6+ {[%emt 0:00:15]} 105. Kc5 {[%emt 0:00:04]} Rh5 {[%emt 0:00:14]} 106. Kd5 {[%emt 0:00:16]} Ka7 {[%emt 0:00:15]} 107. Kd6 {[%emt 0:00:16]} Rh6+ {[%emt 0:00:08]} 108. Kc7 {[%emt 0:00:13]} Rh7+ {[%emt 0:00:14]} 109. Nd7 {[%emt 0:00:18]} Ka6 {[%emt 0:00:02]} 110. Kc6 {[%emt 0:00:09]} Rh6+ {[%emt 0:00:14]} 111. Kd5 {[%emt 0:00:04]} Rh5+ {[%emt 0:00:11]} 112. Ne5 {[%emt 0:00:04]} Ka7 {[%emt 0:00:09]} 113. Rb4 {[%emt 0:00:23]} Ka6 {[%emt 0:00:33]} 114. Kd6 {[%emt 0:00:05]} Rh6+ {[%emt 0:00:18]} 115. Kc5 {[%emt 0:00:04]} Rh5 {[%emt 0:00:24]} 116. Rb6+ {[%emt 0:00:06]} Ka5 {[%emt 0:01:51]} 117. Re6 {[%emt 0:00:02]} Ka4 {[%emt 0:00:14]} 118. Kc4 {[%emt 0:00:02]} Rh4+ {[%emt 0:00:10]} 119. Kc3 {[%emt 0:00:04]} Kb5 {[%emt 0:00:12]} 120. Nf3 {[%emt 0:00:05]} Rh3 {[%emt 0:00:30]} 121. Re3 {[%emt 0:00:02]} Rh1 {[%emt 0:00:25]} 122. Nd4+ {[%emt 0:18:40]} 1/2-1/2

[Event "80th GEO-ch 2021"]
[Site "Tbilisi"]
[Date "2021.04.24"]
[Round "5.2"]
[White "Arabidze, Meri"]
[Black "Paichadze, Luka"]
[Result "1/2-1/2"]
[ECO "A94"]
[WhiteElo "2437"]
[BlackElo "2565"]
[Annotator "ChessBase"]
[PlyCount "106"]
[EventDate "2021.04.20"]
[EventType "tourn"]
[EventCountry "GEO"]
[SourceTitle "playchess.com"]
[Source "ChessBase"]
[SourceQuality "1"]
[TimeControl "5400+30"]

1. d4 {[%emt 0:00:00]} e6 {[%emt 0:00:00]} 2. c4 {[%emt 0:00:04]} f5 {[%emt 0:00:03]} 3. g3 {[%emt 0:00:37]} Nf6 {[%emt 0:00:08]} 4. Bg2 {[%emt 0:00:05]} c6 {[%emt 0:00:41]} 5. Nf3 {[%emt 0:03:02]} d5 {[%emt 0:00:08]} 6. O-O {[%emt 0:00:11]} Bd6 {[%emt 0:00:06]} 7. b3 {[%emt 0:00:15]} O-O {[%emt 0:01:33]} 8. Ba3 {[%emt 0:01:21]} Bxa3 {[%emt 0:01:35]} 9. Nxa3 {[%emt 0:00:02]} Bd7 {[%emt 0:00:14]} 10. Nc2 {[%emt 0:01:48]} Be8 {[%emt 0:00:23]} 11. Nce1 {[%emt 0:02:12]} Bh5 {[%emt 0:01:25]} 12. Nd3 {[%emt 0:03:32]} Nbd7 {[%emt 0:06:01]} 13. Qc1 {[%emt 0:10:55]} Qe7 {[%emt 0:04:39]} 14. Qb2 {[%emt 0:04:47]} Ne4 {[%emt 0:18:50]} 15. Nfe5 {[%emt 0:07:42]} Nxe5 {[%emt 0:00:43]} 16. Nxe5 {[%emt 0:02:29]} f4 {[%emt 0:04:41]} 17. f3 {[%emt 0:16:46]} Ng5 {[%emt 0:11:40]} 18. g4 {[%emt 0:12:29]} Be8 {[%emt 0:08:17]} 19. e3 {[%emt 0:00:36]} fxe3 {[%emt 0:10:15]} 20. Qe2 {[%emt 0:04:12]} c5 {[%emt 0:00:35]} 21. Qxe3 {[%emt 0:02:30]} cxd4 {[%emt 0:02:38]} 22. Qxd4 {[%emt 0:00:10]} dxc4 {[%emt 0:02:11]} 23. f4 {[%emt 0:06:03]} Nf7 {[%emt 0:00:13]} 24. Nxc4 {[%emt 0:00:16]} Bc6 {[%emt 0:00:20]} 25. Bxc6 {[%emt 0:01:36]} bxc6 {[%emt 0:00:06]} 26. Qe3 {[%emt 0:00:32]} Rad8 {[%emt 0:03:10]} 27. Rae1 {[%emt 0:00:33]} Rfe8 {[%emt 0:01:33]} 28. Re2 {[%emt 0:00:10]} Rd5 {[%emt 0:03:28]} 29. Rfe1 {[%emt 0:05:01]} Qd7 {[%emt 0:00:55]} 30. Qg3 {[%emt 0:01:39]} Rd3 {[%emt 0:01:14]} 31. Re3 {[%emt 0:00:52]} Rxe3 {[%emt 0:00:42]} 32. Rxe3 {[%emt 0:04:54]} Rf8 {[%emt 0:06:46]} 33. Rd3 {[%emt 0:01:37]} Qe7 {[%emt 0:02:16]} 34. Qe3 {[%emt 0:01:44]} Qf6 {[%emt 0:00:41]} 35. Kg2 {[%emt 0:01:49]} g5 {[%emt 0:05:32]} 36. Ne5 {[%emt 0:04:55]} gxf4 {[%emt 0:00:38]} 37. Nd7 {[%emt 0:00:03]} Qg6 {[%emt 0:02:51]} 38. Qf3 {[%emt 0:00:15]} Rd8 {[%emt 0:01:06]} 39. h4 {[%emt 0:00:08]} Kg7 {[%emt 0:00:40]} 40. Kf2 {[%emt 0:01:29]} e5 {[%emt 0:00:15]} 41. h5 {[%emt 0:00:31]} Qg5 {[%emt 0:00:21]} 42. Qxc6 {[%emt 0:00:24]} Nh6 {[%emt 0:00:50]} 43. Qe6 {[%emt 0:00:37]} Nxg4+ {[%emt 0:00:14]} 44. Ke2 {[%emt 0:00:35]} Nh6 {[%emt 0:00:50]} 45. Nxe5 {[%emt 0:00:24]} Qxh5+ {[%emt 0:00:14]} 46. Kd2 {[%emt 0:00:19]} Qh2+ {[%emt 0:00:30]} 47. Kc3 {[%emt 0:00:11]} Rxd3+ {[%emt 0:00:14]} 48. Kxd3 {[%emt 0:00:21]} Qg3+ {[%emt 0:00:22]} 49. Ke4 {[%emt 0:00:45]} Qe3+ {[%emt 0:00:43]} 50. Kd5 {[%emt 0:00:01]} Qd2+ {[%emt 0:00:12]} 51. Ke4 {[%emt 0:01:01]} Qe3+ {[%emt 0:00:53]} 52. Kd5 {[%emt 0:00:01]} Qd2+ {[%emt 0:00:07]} 53. Ke4 {[%emt 0:00:16]} Qd8 {[%emt 0:01:48]} 1/2-1/2

[Event "80th GEO-ch 2021"]
[Site "Tbilisi"]
[Date "2021.04.24"]
[Round "5.3"]
[White "Petriashvili, Nikoloz"]
[Black "Pantsulaia, Levan"]
[Result "0-1"]
[ECO "E70"]
[WhiteElo "2425"]
[BlackElo "2553"]
[Annotator "ChessBase"]
[PlyCount "82"]
[EventDate "2021.04.20"]
[EventType "tourn"]
[EventCountry "GEO"]
[SourceTitle "playchess.com"]
[Source "ChessBase"]
[SourceQuality "1"]
[TimeControl "5400+30"]

1. d4 {[%emt 0:00:00]} Nf6 {[%emt 0:00:14]} 2. c4 {[%emt 0:00:00]} g6 {[%emt 0:01:04]} 3. Nc3 {[%emt 0:00:09]} Bg7 {[%emt 0:00:42]} 4. e4 {[%emt 0:00:07]} O-O {[%emt 0:00:26]} 5. Nge2 {[%emt 0:00:27]} d6 {[%emt 0:02:15]} 6. Ng3 {[%emt 0:00:36]} e5 {[%emt 0:03:03]} 7. d5 {[%emt 0:00:02]} a5 {[%emt 0:00:10]} 8. h4 {[%emt 0:01:37]} h5 {[%emt 0:00:31]} 9. Bg5 {[%emt 0:00:02]} Qe8 {[%emt 0:00:45]} 10. Be2 {[%emt 0:01:34]} Nh7 {[%emt 0:08:30]} 11. Bd2 {[%emt 0:13:10]} Na6 {[%emt 0:00:46]} 12. Qc2 {[%emt 0:10:00]} Nb4 {[%emt 0:05:39]} 13. Qb3 {[%emt 0:00:23]} b6 {[%emt 0:01:12]} 14. O-O-O {[%emt 0:03:02]} Bd7 {[%emt 0:05:33]} 15. Be3 {[%emt 0:10:17]} Qe7 {[%emt 0:06:18]} 16. Nf1 {[%emt 0:09:17]} f5 {[%emt 0:06:09]} 17. f3 {[%emt 0:00:03]} Rf7 {[%emt 0:05:09]} 18. Nd2 {[%emt 0:00:54]} Qf8 {[%emt 0:04:04]} 19. Rdg1 {[%emt 0:13:30]} Bh6 {[%emt 0:08:44]} 20. Nd1 {[%emt 0:00:17]} Nf6 {[%emt 0:00:50]} 21. Rf1 {[%emt 0:08:30]} Qg7 {[%emt 0:03:38]} 22. exf5 {[%emt 0:04:17]} gxf5 {[%emt 0:02:41]} 23. f4 {[%emt 0:00:04]} Re8 {[%emt 0:02:24]} 24. Bf3 {[%emt 0:05:43]} exf4 {[%emt 0:05:55]} 25. Bd4 {[%emt 0:00:16]} Qg6 {[%emt 0:00:57]} 26. a3 {[%emt 0:00:29]} Na6 {[%emt 0:00:18]} 27. Nf2 {[%emt 0:00:58]} Nc5 {[%emt 0:03:51]} 28. Qc2 {[%emt 0:01:41]} Ng4 {[%emt 0:01:15]} 29. Re1 {[%emt 0:04:46]} Re3 {[%emt 0:01:12]} 30. Bxg4 {[%emt 0:03:19]} hxg4 {[%emt 0:00:26]} 31. b4 {[%emt 0:00:04]} axb4 {[%emt 0:02:29]} 32. axb4 {[%emt 0:00:01]} Rfe7 {[%emt 0:01:18]} 33. Bxe3 {[%emt 0:01:01]} fxe3 {[%emt 0:00:08]} 34. Kb1 {[%emt 0:00:11]} Na4 {[%emt 0:04:27]} 35. b5 {[%emt 0:01:18]} Nc5 {[%emt 0:01:16]} 36. Nb3 {[%emt 0:01:06]} Nxb3 {[%emt 0:01:23]} 37. Qxb3 {[%emt 0:00:02]} f4+ {[%emt 0:00:12]} 38. Nd3 {[%emt 0:00:24]} Bf5 {[%emt 0:00:24]} 39. Kc2 {[%emt 0:00:01]} e2 {[%emt 0:00:46]} 40. Ra1 {[%emt 0:00:29]} Re3 {[%emt 0:00:24]} 41. Ra8+ {[%emt 0:00:04]} Kh7 {[%emt 0:00:38]} 0-1

[Event "80th GEO-ch 2021"]
[Site "Tbilisi"]
[Date "2021.04.24"]
[Round "5.4"]
[White "Quparadze, Giga"]
[Black "Lortkipanidze, Nodar"]
[Result "*"]
[ECO "B15"]
[WhiteElo "2463"]
[BlackElo "2416"]
[Annotator "ChessBase"]
[PlyCount "97"]
[EventDate "2021.04.20"]
[EventType "tourn"]
[EventCountry "GEO"]
[SourceTitle "playchess.com"]
[Source "ChessBase"]
[SourceQuality "1"]
[TimeControl "5400+30"]

1. e4 {[%emt 0:00:00]} c6 {[%emt 0:00:00]} 2. d4 {[%emt 0:00:00]} d5 {[%emt 0:00:00]} 3. Nc3 {[%emt 0:00:00]} dxe4 {[%emt 0:00:00]} 4. Nxe4 {[%emt 0:00:00]} Nf6 {[%emt 0:00:00]} 5. Nxf6+ {[%emt 0:00:00]} exf6 {[%emt 0:00:00]} 6. c3 {[%emt 0:00:03]} Bd6 {[%emt 0:00:00]} 7. Bd3 {[%emt 0:00:04]} Na6 {[%emt 0:00:00]} 8. Qc2 {[%emt 0:00:14]} Nc7 {[%emt 0:02:04]} 9. Ne2 {[%emt 0:00:07]} h5 {[%emt 0:00:18]} 10. O-O {[%emt 0:00:13]} Nd5 {[%emt 0:00:43]} 11. a3 {[%emt 0:00:17]} Kf8 {[%emt 0:01:09]} 12. c4 {[%emt 0:00:33]} Ne7 {[%emt 0:00:08]} 13. Bd2 {[%emt 0:01:00]} g6 {[%emt 0:00:19]} 14. Bc3 {[%emt 0:00:31]} Kg7 {[%emt 0:00:19]} 15. Ng3 {[%emt 0:00:17]} Qc7 {[%emt 0:04:09]} 16. f4 {[%emt 0:08:40]} h4 {[%emt 0:11:06]} 17. Ne4 {[%emt 0:00:27]} Nf5 {[%emt 0:00:04]} 18. d5 {[%emt 0:02:38]} Bxf4 {[%emt 0:27:09]} 19. Bxf6+ {[%emt 0:00:15]} Kg8 {[%emt 0:00:02]} 20. d6 {[%emt 0:00:07]} Bxd6 {[%emt 0:01:00]} 21. Nxd6 {[%emt 0:00:29]} Qxd6 {[%emt 0:00:21]} 22. Bxh8 {[%emt 0:00:09]} Kxh8 {[%emt 0:00:03]} 23. Qc3+ {[%emt 0:00:38]} Kg8 {[%emt 0:00:16]} 24. c5 {[%emt 0:00:07]} Qd5 {[%emt 0:01:08]} 25. Rae1 {[%emt 0:01:30]} Be6 {[%emt 0:00:28]} 26. Bxf5 {[%emt 0:00:07]} Bxf5 {[%emt 0:00:19]} 27. Rd1 {[%emt 0:02:14]} Qe4 {[%emt 0:03:21]} 28. Rd4 {[%emt 0:00:08]} Qe7 {[%emt 0:00:19]} 29. Re1 {[%emt 0:00:34]} Be6 {[%emt 0:05:21]} 30. h3 {[%emt 0:00:35]} Qg5 {[%emt 0:01:07]} 31. Ree4 {[%emt 0:00:38]} Bd5 {[%emt 0:02:20]} 32. Qe3 {[%emt 1:23:25]} Qxe3+ {[%emt 0:01:03]} 33. Rxe3 {[%emt 0:00:05]} b6 {[%emt 0:01:22]} 34. cxb6 {[%emt 0:00:15]} axb6 {[%emt 0:00:04]} 35. Rxh4 {[%emt 0:00:05]} b5 {[%emt 0:00:14]} 36. Rd4 {[%emt 0:00:09]} Kg7 {[%emt 0:00:15]} 37. h4 {[%emt 0:00:07]} Kf6 {[%emt 0:01:38]} 38. Kf2 {[%emt 0:00:08]} Rh8 {[%emt 0:02:18]} 39. b3 {[%emt 0:01:25]} g5 {[%emt 0:00:18]} 40. hxg5+ {[%emt 0:00:09]} Kxg5 {[%emt 0:00:09]} 41. a4 {[%emt 0:00:04]} bxa4 {[%emt 0:00:09]} 42. bxa4 {[%emt 0:00:06]} Ra8 {[%emt 0:00:07]} 43. g3 {[%emt 0:00:23]} Kf6 {[%emt 0:00:16]} 44. Rf4+ {[%emt 0:00:06]} Kg5 {[%emt 0:00:42]} 45. Ra3 {[%emt 0:00:08]} Ra5 {[%emt 0:00:11]} 46. Ke3 {[%emt 0:01:58]} f5 {[%emt 0:40:41]} 47. Kd4 {[%emt 0:02:10]} Bf7 {[%emt 0:01:19]} 48. Ra1 {[%emt 0:02:51]} c5+ {[%emt 0:01:32]} 49. Kc3 {[%emt 0:01:05]} *